bitfinex-derivatives/quotes_ETHF0:USTF0_20250616
["timestamp","ask_amount","ask_price","bid_price","bid_amount"]
[1750082426783,28.174,2643.8,2643.4,3.2078]
[1750082426988,0.7564,2643.6,2643.4,3.2078]
[1750082427276,37.93054207,2643.8,2643.3,0.00567569]
[1750082427277,38.68690207,2643.8,2643.3,0.00567569]
[1750082427476,0.06737406,2643.4,2643.3,0.76215569]
[1750082427683,35.86327,2644.1,2643.8,0.75633]
[1750082427982,35.86327,2644.1,2644.0,0.75628]
[1750082427983,35.107,2644.1,2644.0,0.75628]
[1750082428284,35.108,2644.1,2644.0,0.75628]
[1750082428582,35.108,2644.1,2643.8,3.2078]
[1750082428583,0.75629,2644.0,2643.8,3.2078]
[1750082428774,36.45,2644.1,2644.0,0.75628]
[1750082429082,35.108,2644.1,2643.9,0.75631]
[1750082429286,35.108,2644.1,2644.0,0.75628]
[1750082429677,23.4894,2644.5,2643.8,3.2078]
[1750082429879,26.801,2644.4,2644.3,0.7562]
[1750082430080,32.53055,2644.5,2644.1,3.2078]
[1750082430081,31.161,2644.5,2644.4,0.75617]
[1750082430276,5.20237569,2644.8,2644.1,5.09837]
[1750082430277,0.7561,2644.7,2644.2,1.2479]
[1750082430474,0.75619,2644.4,2644.1,3.2078]
[1750082430676,9.75654207,2644.2,2643.7,3.2078]
[1750082430988,26.801,2644.1,2643.4,3.2078]
[1750082431282,26.801,2644.1,2644.0,0.75628]
[1750082431483,0.75623,2644.2,2643.6,3.2078]
[1750082431680,26.791,2644.1,2643.9,3.2078]
[1750082431877,0.75628,2644.0,2643.9,3.2078]
[1750082432078,26.791,2644.1,2643.9,3.2078]
[1750082432287,26.791,2644.1,2644.0,0.75628]
[1750082432483,4.451,2644.6,2643.9,3.2078]
[1750082432679,26.791,2644.2,2643.9,3.2078]
[1750082432885,26.791,2644.2,2644.1,0.75625]
[1750082433081,27.54723,2644.2,2644.0,0.75627]
[1750082433285,27.54724,2644.2,2644.0,0.75627]
[1750082433586,0.75628,2644.0,2643.9,0.9455]
[1750082433778,1.2875,2644.1,2643.9,4.1533]
[1750082433979,3.2078,2644.4,2643.9,0.9455]
[1750082434181,0.75628,2644.0,2643.9,0.9455]
[1750082434385,35.024,2644.0,2643.9,0.9455]
[1750082434575,3.2078,2644.4,2644.1,0.75624]
[1750082434780,35.024,2644.3,2644.0,0.75627]
[1750082434984,35.78021,2644.3,2644.1,0.75625]
[1750082435280,9.75654207,2644.2,2643.9,0.9455]
[1750082435479,0.75628,2644.0,2643.9,0.9455]
[1750082436182,19.93165207,2644.9,2643.9,4.1533]
[1750082436389,1.94837569,2644.8,2644.5,0.75614]
[1750082436587,27.48413,2644.6,2644.4,0.75615]
[1750082436788,0.75617,2644.4,2644.2,0.75621]
[1750082437087,26.728,2644.6,2644.4,0.75616]
[1750082437390,0.75617,2644.5,2644.2,0.75621]
[1750082437683,37.78034207,2644.6,2644.1,3.2078]
[1750082437883,9.75654207,2644.3,2643.8,1.3394]
[1750082438180,27.44223,2644.2,2643.8,1.3394]
[1750082438386,26.686,2644.2,2644.1,0.75626]
[1750082438587,9.04119,2644.4,2644.2,0.75622]
[1750082438774,27.4632,2644.3,2644.1,0.75624]
[1750082438980,27.4632,2644.3,2643.9,3.2078]
[1750082438981,26.707,2644.3,2643.9,3.2078]
[1750082439199,0.75634,2643.8,2643.7,2.4351]
[1750082439485,0.7564,2643.6,2643.5,0.9457]
[1750082439681,35.7414,2643.6,2643.5,0.9457]
[1750082440077,0.75646,2643.4,2642.8,4.434]
[1750082440388,9.75654207,2643.4,2642.8,5.19062]
[1750082440582,4.5011,2643.3,2642.8,3.2078]
[1750082440784,26.675,2643.2,2642.8,3.2078]
[1750082441086,0.75659,2643.0,2642.4,3.2078]
[1750082441389,0.75659,2643.0,2642.8,3.96441]
[1750082441390,26.659,2642.9,2642.8,3.96441]
[1750082441777,26.659,2642.9,2642.8,0.75661]
[1750082441977,26.659,2642.9,2642.6,2.641]
[1750082442277,26.659,2642.9,2642.7,0.75664]
[1750082442477,0.00567569,2643.0,2642.6,2.641]
[1750082442679,0.00567569,2643.0,2642.9,0.7566]
[1750082442680,5.69e-06,2643.0,2642.9,0.7566]
[1750082442892,5.69e-06,2643.0,2642.9,2.105]
[1750082443187,5.69e-06,2643.0,2642.9,7.105]
[1750082443484,5.69e-06,2643.0,2642.9,3.83229493]
[1750082443783,5.69e-06,2643.0,2642.9,1.3484]
[1750082443986,0.7566,2642.9,2642.8,3.2078]
[1750082444286,34.88200569,2643.0,2642.8,0.75663]
[1750082444582,5.69e-06,2643.0,2642.9,3.9644]
[1750082444976,5.69e-06,2643.0,2642.9,8.9644]
[1750082445591,5.69e-06,2643.0,2642.9,10.42437863]
[1750082445787,49.524,2644.3,2644.2,0.75623]
[1750082445995,22.875,2644.3,2644.2,0.75623]
[1750082446292,49.514,2644.3,2644.2,0.75623]
[1750082447093,22.875,2644.3,2644.2,3.96403]
[1750082447292,49.478,2644.3,2644.2,3.96403]
[1750082447587,49.478,2644.3,2644.2,0.75623]
[1750082448295,64.23454207,2644.3,2644.1,0.75626]
[1750082448486,1.2205,2644.2,2644.1,0.75626]
[1750082448791,1.2205,2644.2,2644.0,0.76196569]
[1750082448987,1.97675,2644.2,2644.0,0.00567569]
[1750082449192,0.75626,2644.1,2644.0,0.00567569]
[1750082449387,2.01766,2644.1,2644.0,0.00567569]
[1750082449990,6.2614,2644.1,2643.3,3.2078]
[1750082450287,0.75639,2643.7,2643.5,0.75641]
[1750082450590,39.0832,2643.6,2642.7,3.2078]
[1750082450798,0.75657,2643.1,2642.7,3.2078]
[1750082451090,35.46395406,2643.0,2642.8,0.75662]
[1750082451292,35.46396406,2643.0,2642.8,0.75662]
[1750082451483,34.70737406,2643.0,2642.6,2.64667569]
[1750082451679,1.9722,2642.9,2642.7,0.75665]
[1750082451883,1.2156,2642.9,2642.8,0.75663]
[1750082452095,1.97221,2642.9,2642.7,0.75665]
[1750082452296,0.75666,2642.7,2642.6,2.64667569]
[1750082452490,0.75666,2642.7,2642.6,0.62027569]
[1750082452794,0.75666,2642.7,2641.7,3.2078]
[1750082452795,1.89185,2642.5,2641.7,3.2078]
[1750082453089,0.75685,2642.1,2641.8,0.75691]
[1750082453291,26.522,2642.0,2641.7,3.2078]
[1750082453497,26.514,2642.0,2641.7,3.2078]
[1750082453788,3.2078,2642.2,2642.0,0.75684]
[1750082453988,34.584,2642.1,2642.0,0.75686]
[1750082454396,34.584,2642.1,2641.9,0.75687]
[1750082454698,8.08,2642.1,2642.0,0.75684]
[1750082454885,3.96453,2642.5,2642.2,0.7568]
[1750082455083,35.32575,2642.4,2642.2,0.7568]
[1750082455286,4.4302,2642.5,2641.8,2.7231]
[1750082455287,5.18694,2642.5,2641.8,2.7231]
[1750082455482,35.29876,2642.4,2642.2,0.75679]
[1750082455696,34.534,2642.3,2642.2,0.75678]
[1750082456286,34.534,2642.3,2642.0,3.2078]
[1750082456487,34.534,2642.3,2642.2,0.7568]
[1750082456691,34.534,2642.3,2642.1,0.75682]
[1750082456886,0.75681,2642.2,2642.0,3.2078]
[1750082457098,26.447,2642.2,2642.1,0.75683]
[1750082457396,26.447,2642.2,2642.0,3.96464]
[1750082457701,26.447,2642.2,2642.0,3.2078]
[1750082458397,26.447,2642.2,2642.1,0.75683]
[1750082458601,0.75683,2642.1,2642.0,3.2078]
[1750082458900,26.447,2642.2,2642.1,0.75683]
[1750082459090,27.2038,2642.2,2642.0,3.96464]
[1750082459296,0.75683,2642.1,2642.0,3.2078]
[1750082459495,0.75688,2642.0,2641.8,1.4888]
[1750082459691,0.75689,2642.0,2641.8,2.24572]
[1750082459897,35.23884,2642.1,2641.8,1.4888]
[1750082460086,2.05872,2642.2,2642.0,0.75684]
[1750082460291,8.082,2642.1,2641.8,1.4888]
[1750082460494,1.89238,2641.7,2640.8,3.2078]
[1750082460697,26.379,2642.0,2640.4,3.2078]
[1750082460698,9.75654207,2641.2,2640.4,3.2078]
[1750082460895,9.75654207,2640.9,2640.4,3.2078]
[1750082461196,9.75654207,2640.9,2639.6,4.89156626]
[1750082461197,1.89324,2640.5,2639.6,1.10388626]
[1750082461499,10.51406207,2639.7,2639.6,0.07576905]
[1750082461698,35.30352,2639.7,2639.6,0.07576905]
[1750082462402,39.546,2639.7,2638.7,3.2078]
[1750082462704,3.2078,2639.4,2638.8,0.07579202]
[1750082462995,0.75775,2638.9,2638.8,0.07579202]
[1750082463196,27.23675,2638.9,2638.8,0.07579202]
[1750082463390,27.8159,2638.9,2638.1,1.3125]
[1750082463594,9.75654207,2639.0,2638.2,1.2259]
[1750082463899,9.75654207,2639.0,2637.7,3.2078]
[1750082463900,1.89459,2638.6,2637.7,3.2078]
[1750082464212,12.96434207,2637.9,2637.3,1.2319]
[1750082464391,9.75654207,2637.6,2637.3,1.2319]
[1750082464895,3.2078,2637.8,2637.5,0.75813]
[1750082465090,3.2078,2637.8,2637.4,3.96596]
[1750082465291,12.96434207,2637.8,2637.0,1.2319]
[1750082465489,3.2078,2637.9,2637.0,1.2319]
[1750082465798,34.602,2637.8,2637.1,0.75825]
[1750082466093,34.602,2637.8,2637.0,4.4397]
[1750082466300,3.2078,2637.7,2637.5,0.75814]
[1750082466599,3.2078,2637.7,2637.5,0.75813]
[1750082466990,3.2078,2637.7,2637.0,4.4397]
[1750082467186,3.2078,2637.7,2637.2,0.75821]
[1750082467392,9.75654207,2637.5,2637.0,1.2319]
[1750082467588,11.2948,2637.7,2637.6,0.75812]
[1750082467797,37.8068,2637.7,2637.0,4.4397]
[1750082467986,37.8068,2637.7,2637.2,0.75822]
[1750082468192,37.8068,2637.7,2637.0,1.2319]
[1750082468193,10.51467207,2637.6,2637.0,1.2319]
[1750082468401,12.96434207,2637.6,2637.0,1.2319]
[1750082468795,0.75826,2637.2,2636.8,0.75834]
[1750082469001,26.528,2637.1,2636.9,0.75832]
[1750082469204,3.2078,2637.3,2637.0,0.75827]
[1750082469495,3.2078,2637.7,2636.7,1.328]
[1750082469697,8.091,2637.8,2637.5,3.2078]
[1750082469900,26.1098,2638.0,2637.6,1.328]
[1750082470202,22.902,2638.0,2637.6,1.328]
[1750082470398,8.091,2638.0,2637.9,0.75804]
[1750082470900,0.76358569,2638.4,2638.3,0.75792]
[1750082470901,0.00567569,2638.4,2638.3,0.75792]
[1750082471596,26.87657,2638.9,2638.3,0.75792]
[1750082471597,31.004,2638.9,2638.3,5.0]
[1750082471902,9.75654207,2638.5,2638.0,3.2078]
[1750082472102,0.7578,2638.8,2638.0,1.89502]
[1750082472302,26.1188,2638.9,2638.2,3.2078]
[1750082472503,22.911,2638.9,2638.8,0.75778]
[1750082472698,57.552,2638.9,2638.8,0.75778]
[1750082472897,49.459,2638.9,2638.8,0.75778]
[1750082473195,57.546,2638.9,2638.8,0.75778]
[1750082473396,49.453,2638.9,2638.8,0.75778]
[1750082473700,0.00568645,2639.1,2638.7,1.3016]
[1750082473899,26.52468645,2639.1,2638.7,1.3016]
[1750082474099,9.75654207,2638.9,2638.8,0.75778]
[1750082474300,9.75654207,2638.9,2638.7,0.75778]
[1750082474503,31.02678645,2639.1,2638.6,0.00568645]
[1750082474692,3.9656,2638.8,2638.6,0.76351645]
[1750082474895,26.526,2638.7,2638.6,0.76351645]
[1750082475300,1.29998645,2639.1,2638.6,0.76351645]
[1750082475301,3.21348645,2639.1,2639.0,0.75772]
[1750082475507,37.80848645,2639.1,2639.0,0.75772]
[1750082476007,0.00568645,2639.1,2639.0,0.75772]
[1750082476209,0.00568645,2639.1,2639.0,3.96552]
[1750082477010,0.00568645,2639.1,2639.0,8.96552]
[1750082477303,6.45e-06,2639.1,2639.0,8.96552]
[1750082479202,6.45e-06,2639.1,2639.0,3.96552]
[1750082479509,6.45e-06,2639.1,2639.0,0.75772]
[1750082479803,1.89438,2638.9,2638.0,3.2078]
[1750082480106,25.94534852,2639.1,2637.8,1.255]
[1750082480107,0.75796,2638.2,2637.8,1.255]
[1750082480306,27.19398,2638.1,2638.0,0.75801]
[1750082480603,0.75802,2638.0,2637.9,0.75802]
[1750082480808,36.19254207,2638.1,2637.4,3.2078]
[1750082480809,36.19254207,2638.1,2638.0,0.75801]
[1750082481003,34.407,2638.1,2637.8,1.89517]
[1750082481206,34.407,2638.1,2638.0,0.75801]
[1750082481601,35.16498,2638.1,2638.0,0.75801]
[1750082481902,0.75806,2637.8,2637.7,0.00568645]
[1750082482100,9.75654207,2637.8,2637.7,0.76377645]
[1750082482304,10.51460207,2637.8,2637.7,0.00568645]
[1750082482804,3.2078,2637.9,2637.7,0.00568645]
[1750082483008,0.75806,2637.8,2637.7,0.00568645]
[1750082483905,2.05286,2637.8,2637.7,0.00568645]
[1750082484505,7.05286,2637.8,2637.7,0.00568645]
[1750082484806,1.89533,2637.6,2637.0,3.2078]
[1750082485011,38.8486,2637.5,2636.7,3.2078]
[1750082485198,40.74405,2637.5,2636.7,3.96617]
[1750082485399,3.2078,2637.1,2636.9,0.75831]
[1750082485607,0.75835,2636.8,2636.7,3.2078]
[1750082485802,26.34468645,2637.0,2636.9,0.75832]
[1750082486007,0.75834,2636.9,2636.7,3.96616]
[1750082486207,35.09599645,2637.0,2636.8,0.75835]
[1750082486403,34.33768645,2637.0,2636.9,0.75832]
[1750082486603,34.33768645,2637.0,2636.8,2.04293]
[1750082486808,0.00568645,2637.0,2636.4,3.8711]
[1750082487105,26.317,2636.9,2636.8,0.75835]
[1750082487312,27.07532,2636.9,2636.8,2.04295]
[1750082487507,0.75835,2636.8,2636.7,3.2078]
[1750082487710,1.89588,2636.8,2636.4,0.75845]
[1750082487912,0.75847,2636.4,2636.3,3.2078]
[1750082488111,34.284,2636.4,2636.0,3.2078]
[1750082488306,0.75855,2636.1,2636.0,3.2078]
[1750082488810,3.2078,2636.6,2636.0,8.2078]
[1750082489118,7.984,2636.2,2636.1,0.75854]
[1750082489314,3.96622,2636.6,2636.0,5.10421]
[1750082489514,34.271,2636.5,2636.4,0.75846]
[1750082489912,34.263,2636.5,2636.4,0.75846]
[1750082490510,22.925,2636.7,2636.3,3.2078]
[1750082490810,0.75845,2636.5,2636.4,0.75845]
[1750082491005,34.239,2636.6,2636.0,3.2078]
[1750082491215,0.75844,2636.5,2636.4,0.75844]
[1750082491410,34.232,2636.5,2636.4,0.75844]
[1750082491614,34.232,2636.5,2636.0,3.2078]
[1750082491812,0.75853,2636.2,2636.1,0.75853]
[1750082492010,28.02879,2636.7,2636.1,0.75853]
[1750082492011,7.986,2636.4,2636.1,1.89638]
[1750082492220,22.925,2636.7,2636.6,0.7584]
[1750082492728,49.181,2636.7,2636.6,0.7584]
[1750082493218,22.925,2636.7,2636.6,0.7584]
[1750082493417,49.173,2636.7,2636.3,3.2078]
[1750082493618,0.75846,2636.5,2636.4,0.75845]
[1750082493816,0.75846,2636.4,2636.2,0.75851]
[1750082494012,43.97354207,2636.3,2635.9,3.2078]
[1750082494216,26.222,2636.2,2635.9,3.2078]
[1750082494417,26.222,2636.2,2636.1,0.75855]
[1750082495219,22.925,2636.7,2636.6,0.7584]
[1750082495420,57.116,2636.7,2636.6,0.7584]
[1750082495717,57.116,2636.7,2636.5,0.75842]
[1750082495918,57.116,2636.7,2636.5,0.75843]
[1750082496215,57.116,2636.7,2636.3,3.2078]
[1750082496512,0.75842,2636.6,2636.5,0.75842]
[1750082496907,61.6734,2636.7,2636.0,3.2078]
[1750082497216,9.75654207,2636.4,2636.2,0.75849]
[1750082497406,9.75654207,2636.4,2636.0,3.2078]
[1750082497407,34.169,2636.3,2636.1,0.75853]
[1750082497612,26.182,2636.2,2636.1,0.75855]
[1750082498120,0.75858,2636.0,2635.9,3.2078]
[1750082498324,0.75858,2636.0,2635.6,0.6336]
[1750082498520,3.2078,2636.2,2635.5,3.2078]
[1750082498822,0.75858,2636.0,2635.5,3.2078]
[1750082499420,3.2078,2636.2,2636.1,0.75855]
[1750082499617,9.75654207,2636.5,2636.1,0.75855]
[1750082499818,0.75853,2636.2,2636.1,0.75854]
[1750082500116,3.96631,2636.3,2635.8,3.2078]
[1750082500312,11.82109207,2636.5,2635.9,1.89652]
[1750082500514,34.101,2636.4,2635.8,3.2078]
[1750082500712,34.101,2636.4,2636.2,0.75851]
[1750082500910,34.101,2636.4,2635.8,3.2078]
[1750082501220,3.2078,2636.3,2635.8,3.2078]
[1750082501519,3.2078,2636.3,2636.0,0.75856]
[1750082501724,3.2078,2636.3,2635.8,3.2078]
[1750082501911,0.75851,2636.3,2635.8,3.2078]
[1750082502112,3.96622,2636.6,2636.4,0.75845]
[1750082502416,34.072,2636.5,2636.4,0.75846]
[1750082502618,7.988,2636.5,2636.4,0.75846]
[1750082502919,34.068,2636.5,2636.3,0.75849]
[1750082503123,34.068,2636.5,2636.0,4.479]
[1750082503312,3.96624,2636.5,2636.4,0.75846]
[1750082503516,35.82954207,2636.5,2636.0,1.2712]
[1750082503820,0.75849,2636.3,2636.2,0.7585]
[1750082504016,36.58799207,2636.5,2636.4,0.75846]
[1750082504218,26.073,2636.5,2636.4,0.75846]
[1750082504419,9.75654207,2636.8,2636.3,3.2078]
[1750082504618,9.75654207,2636.8,2636.2,1.89627]
[1750082504619,35.95398,2636.7,2636.2,0.7585]
[1750082504821,0.75851,2636.3,2636.2,0.7585]
[1750082505015,26.82851,2636.3,2636.2,0.7585]
[1750082505514,0.75857,2636.1,2636.0,0.75856]
[1750082505716,0.75858,2636.0,2635.9,3.2078]
[1750082505916,10.51512207,2636.0,2635.9,3.2078]
[1750082506116,0.06737406,2636.5,2636.4,0.75846]
[1750082506317,0.06737406,2636.5,2636.4,3.96626]
[1750082506811,26.8384,2636.7,2636.5,0.7584]
[1750082507018,0.7584,2636.6,2636.5,0.7584]
[1750082507524,0.75832,2636.9,2636.8,0.75832]
[1750082507729,7.989,2636.6,2636.5,3.96623]
[1750082508432,7.989,2636.6,2636.5,0.75843]
[1750082509427,3.21348645,2637.0,2636.9,0.75832]
[1750082509727,0.00568645,2637.0,2636.9,0.75832]
[1750082509923,0.00568645,2637.0,2636.8,3.2078]
[1750082510126,0.75837,2636.8,2636.7,0.75835]
[1750082510323,0.7584,2636.7,2636.6,0.7584]
[1750082510531,0.75843,2636.6,2636.5,0.75841]
[1750082510721,0.75849,2636.4,2636.3,0.75847]
[1750082510922,0.75849,2636.3,2636.2,3.8469]
[1750082511118,26.80552,2636.3,2636.0,0.6414]
[1750082511324,26.80552,2636.3,2635.9,3.2078]
[1750082511325,0.75858,2636.0,2635.9,3.96637]
[1750082511625,33.762,2636.0,2635.8,3.2078]
[1750082511824,0.7585,2636.3,2636.2,0.75849]
[1750082512033,0.75856,2636.1,2636.0,0.75855]
[1750082512227,0.75853,2636.2,2636.1,0.75852]
[1750082512429,0.7585,2636.3,2636.2,0.75852]
[1750082512823,0.75855,2636.2,2636.1,0.75853]
[1750082514033,0.75848,2636.4,2636.3,0.75849]
[1750082514234,0.75851,2636.3,2636.2,0.7585]
[1750082514428,3.2078,2636.6,2636.1,3.2078]
[1750082514429,0.75844,2636.6,2636.5,0.75843]
[1750082514734,34.47544,2636.6,2636.5,0.75843]
[1750082515235,3.21348645,2637.0,2636.4,5.10395]
[1750082515424,35.58686,2636.9,2636.4,3.2078]
[1750082515628,35.58686,2636.9,2636.3,0.75847]
[1750082515629,0.75849,2636.4,2636.3,0.75847]
[1750082516043,0.75849,2636.4,2636.1,3.96632]
[1750082516044,0.75852,2636.2,2636.1,3.96632]
[1750082516335,0.75852,2636.2,2636.1,3.2078]
[1750082516532,0.75863,2635.9,2635.8,0.7586]
[1750082516732,0.75863,2635.8,2635.7,3.96645]
[1750082516940,0.75866,2635.7,2635.6,0.75867]
[1750082517236,7.73,2635.8,2635.5,0.7587]
[1750082517237,0.75872,2635.6,2635.5,0.7587]
[1750082517643,0.75872,2635.5,2635.4,3.2078]
[1750082517837,26.71072,2635.5,2635.4,3.2078]
[1750082518950,27.84882,2635.5,2634.9,1.47184834]
[1750082519237,9.75654207,2635.2,2635.1,0.75884]
[1750082519436,7.731,2635.2,2634.8,3.2078]
[1750082519740,0.75888,2635.0,2634.9,0.75888]
[1750082519946,0.75889,2635.0,2634.9,0.75888]
[1750082520240,12.97002852,2635.5,2635.4,0.75875]
[1750082520241,0.00568645,2635.5,2635.4,0.75875]
[1750082520545,25.926,2636.0,2635.6,1.89674]
[1750082520745,7.731,2636.2,2635.1,1.48658299]
[1750082520746,0.75881,2635.2,2635.1,1.48658299]
[1750082520929,0.75881,2635.2,2634.9,5.43767448]
[1750082520930,34.41381,2635.2,2634.9,3.2078]
[1750082521134,33.655,2635.2,2634.9,3.96668]
[1750082521345,0.75889,2634.9,2634.8,0.00568645]
[1750082521741,26.152,2634.9,2634.8,0.00568645]
[1750082521944,0.00568645,2635.3,2635.2,0.75881]
[1750082522243,35.90634207,2636.4,2635.5,1.89679]
[1750082522444,0.75852,2636.2,2636.1,0.75852]
[1750082522640,26.189,2636.2,2636.1,0.75852]
[1750082522842,26.189,2636.2,2635.9,3.2078]
[1750082522843,0.75858,2636.0,2635.9,3.2078]
[1750082523043,0.75857,2636.1,2635.9,3.2078]
[1750082523238,26.18,2636.2,2636.1,0.75855]
[1750082523440,0.75856,2636.1,2636.0,0.75856]
[1750082523946,26.186,2636.1,2635.6,3.15921]
[1750082524150,0.75858,2636.0,2635.9,0.75858]
[1750082524343,35.94254207,2636.1,2635.6,1.2625]
[1750082524648,9.75654207,2635.8,2635.3,4.62059299]
[1750082524851,26.176,2635.8,2635.5,3.2078]
[1750082525041,0.75866,2635.8,2635.7,0.75866]
[1750082525241,26.93466,2635.8,2635.7,0.75866]
[1750082525848,26.176,2635.8,2635.7,0.75866]
[1750082526048,26.176,2635.8,2635.6,2.06368]
[1750082526349,0.75872,2635.6,2635.3,1.2371]
[1750082526645,26.176,2635.8,2635.3,3.13402]
[1750082526841,0.75866,2635.7,2635.6,0.75867]
[1750082527040,26.176,2635.8,2635.4,4.5128]
[1750082527343,0.75868,2635.7,2635.6,0.75868]
[1750082527747,26.91568,2635.7,2635.6,0.75868]
[1750082528345,9.75654207,2635.8,2635.4,4.5128]
[1750082528549,26.90767,2635.7,2635.6,0.75867]
[1750082528743,26.149,2635.7,2635.5,0.7587]
[1750082529046,26.149,2635.7,2635.6,0.75869]
[1750082529244,1.2887,2635.6,2635.1,3.2078]
[1750082529444,9.75654207,2635.7,2635.6,0.75869]
[1750082529644,43.60454207,2635.7,2635.2,1.2211]
[1750082529850,43.60454207,2635.7,2635.4,0.75873]
[1750082529851,0.75875,2635.5,2635.4,0.75873]
[1750082530451,0.75865,2635.8,2635.4,5.10466]
[1750082530650,26.85862,2635.9,2635.8,0.75863]
[1750082530851,0.00568645,2636.3,2635.7,3.2078]
[1750082531147,43.57654207,2637.3,2636.8,0.75834]
[1750082531339,43.57654207,2637.3,2636.9,3.2078]
[1750082531340,26.204,2637.2,2636.9,3.2078]
[1750082531543,17.48854207,2637.3,2637.2,0.75823]
[1750082531744,44.44974207,2637.3,2637.1,0.75824]
[1750082531947,0.75823,2637.2,2637.1,0.75824]
[1750082532141,8.49022,2637.3,2637.2,0.75823]
[1750082532355,7.732,2637.3,2637.2,0.75823]
[1750082532550,33.906,2637.3,2637.2,0.75823]
[1750082533246,7.732,2637.3,2637.2,0.75823]
[1750082533550,7.732,2637.3,2637.2,3.96603]
[1750082534452,0.6152,2638.0,2637.2,3.96603]
[1750082534453,0.75802,2638.0,2637.8,0.75804]
[1750082534644,26.143,2638.0,2637.7,3.2078]
[1750082534843,26.143,2638.0,2637.8,0.75806]
[1750082534844,0.75804,2637.9,2637.8,0.75806]
[1750082535043,26.143,2638.0,2637.9,0.75803]
[1750082535643,7.731,2638.1,2638.0,0.758]
[1750082535846,7.731,2638.1,2638.0,3.9658]
[1750082536050,3.2078,2638.9,2638.1,0.75797]
[1750082536251,11.69656,2638.9,2638.7,0.7578]
[1750082536455,26.096,2638.8,2638.6,0.75782]
[1750082536650,26.85379,2638.8,2638.7,0.7578]
[1750082536855,26.84278,2638.8,2638.6,3.96561]
[1750082537051,0.7578,2638.7,2638.6,3.2078]
[1750082537359,0.7578,2638.7,2638.6,3.96563]
[1750082537558,26.84279,2638.8,2638.6,3.96563]
[1750082537961,26.069,2638.7,2638.6,3.96563]
[1750082538357,26.82682,2638.7,2638.5,3.96564]
[1750082538753,26.82682,2638.7,2638.6,0.75783]
[1750082538954,0.00568645,2639.0,2638.9,0.75774]
[1750082539155,1.89376,2639.8,2638.9,0.75774]
[1750082539156,0.75755,2639.6,2639.4,0.75758]
[1750082539467,0.75757,2639.5,2639.4,3.2078]
[1750082539861,12.96434207,2640.0,2639.4,3.2078]
[1750082540056,12.96434207,2640.0,2639.7,3.2078]
[1750082540057,0.75748,2639.8,2639.7,3.2078]
[1750082540261,0.00377231,2640.0,2639.9,0.75745]
[1750082542062,0.00377231,2640.0,2639.9,1.99165]
[1750082542358,0.75746,2639.9,2639.7,3.2078]
[1750082542565,0.00377231,2640.0,2639.7,3.2078]
[1750082542756,0.75746,2639.9,2639.7,3.2078]
[1750082542962,0.76120231,2640.0,2639.7,3.9653]
[1750082543158,0.75746,2639.9,2639.7,3.2078]
[1750082543360,0.76121231,2640.0,2639.7,3.96531]
[1750082543568,0.00377231,2640.0,2639.8,0.75748]
[1750082543763,0.00377231,2640.0,2639.7,3.2078]
[1750082543968,0.00377231,2640.0,2639.9,0.75745]
[1750082544662,0.00377231,2640.0,2639.8,1.2399]
[1750082544963,0.00377231,2640.0,2639.7,3.2078]
[1750082544964,0.75748,2639.8,2639.7,3.2078]
[1750082546263,2.03208,2639.8,2639.7,3.2078]
[1750082546460,0.00377231,2640.0,2639.7,3.2078]
[1750082546663,0.00377231,2640.0,2639.8,1.2524]
[1750082546862,0.00377231,2640.0,2639.9,0.75746]
[1750082547059,0.76122231,2640.0,2639.7,3.96531]
[1750082547262,0.00377231,2640.0,2639.8,0.75748]
[1750082547461,0.00377231,2640.0,2639.9,0.75746]
[1750082548571,3.2078,2641.1,2640.8,0.75718]
[1750082548759,0.75715,2641.0,2640.9,3.2078]
[1750082549168,8.50007,2641.3,2640.9,3.2078]
[1750082549357,7.743,2641.3,2640.9,3.2078]
[1750082549564,33.648,2641.3,2640.9,3.2078]
[1750082549860,0.75681,2642.2,2641.9,0.75687]
[1750082550063,0.75677,2642.3,2642.1,3.2078]
[1750082550271,25.903,2642.4,2642.1,3.2078]
[1750082550480,9.75654207,2642.2,2641.7,3.2078]
[1750082550762,10.51344207,2641.9,2641.7,3.2078]
[1750082550963,1.99528,2642.3,2641.7,3.2078]
[1750082551162,7.742,2642.3,2642.1,3.2078]
[1750082551363,3.96445,2642.7,2642.1,3.2078]
[1750082551661,0.75668,2642.6,2642.4,3.2078]
[1750082551864,33.784,2642.7,2642.4,3.2078]
[1750082552268,0.75669,2642.6,2642.4,3.2078]
[1750082552656,0.75668,2642.6,2642.4,3.2078]
[1750082552870,33.784,2642.7,2642.4,3.2078]
[1750082553175,26.013,2642.6,2642.5,0.7567]
[1750082553461,33.737,2642.7,2642.4,3.2078]
[1750082553872,0.75671,2642.5,2642.4,3.2078]
[1750082554261,26.73871,2642.5,2642.4,3.2078]
[1750082555264,0.75677,2642.3,2642.2,0.00568645]
[1750082555566,1.27,2643.0,2642.6,0.75667]
[1750082555567,25.943,2643.0,2642.6,0.75667]
[1750082555866,7.738,2643.2,2642.8,0.75661]
[1750082555867,34.46854,2643.2,2642.8,0.75661]
[1750082556066,25.971,2643.2,2643.0,3.2078]
[1750082556470,25.967,2643.1,2643.0,3.2078]
[1750082556664,26.72352,2643.2,2643.0,3.2078]
[1750082556971,0.75656,2643.1,2643.0,3.2078]
[1750082557165,25.967,2643.2,2643.0,3.96436]
[1750082557361,0.75653,2643.2,2643.0,3.2078]
[1750082557563,0.7565,2643.3,2643.1,1.2247]
[1750082557763,26.69551,2643.2,2643.1,1.2247]